[Event "Titled Tuesday Blitz July 25 Early 2023"]
[White "Lisjak, Zlatko"]
[Black "Orlov, Oleg"]
[WhiteFideId "14502186"]
[BlackFideId "4166612"]
[WhiteElo "2129"]
[BlackElo "2468"]
[Result "0-1"]
[Round "7"]
[TimeControl "180+2"]
[Date "2023.07.25"]
[WhiteClock "0:00:04"]
[BlackClock "0:00:10"]
[Board "194"]

1. e4 {[%clk 0:03:00]}  e5 {[%clk 0:02:54]} 2. Nf3 {[%clk 0:02:59]}  Nc6 {[%clk 0:02:52]} 3. Bb5 {[%clk 0:02:57]}  a6 {[%clk 0:02:51]} 4. Bxc6 {[%clk 0:02:58]}  dxc6 {[%clk 0:02:51]} 5. O-O {[%clk 0:02:58]}  f6 {[%clk 0:02:35]} 6. d4 {[%clk 0:02:54]}  Bg4 {[%clk 0:02:20]} 7. dxe5 {[%clk 0:02:53]}  Qxd1 {[%clk 0:02:19]} 8. Rxd1 {[%clk 0:02:53]}  Bxf3 {[%clk 0:02:19]} 9. gxf3 {[%clk 0:02:51]}  fxe5 {[%clk 0:02:20]} 10. Be3 {[%clk 0:02:46]}  Ne7 {[%clk 0:02:17]} 11. Nd2 {[%clk 0:02:42]}  Ng6 {[%clk 0:02:16]} 12. Nc4 {[%clk 0:02:43]}  Be7 {[%clk 0:02:10]} 13. Kf1 {[%clk 0:02:40]}  b6 {[%clk 0:01:21]} 14. a4 {[%clk 0:02:33]}  Rf8 {[%clk 0:01:17]} 15. Ke2 {[%clk 0:02:13]}  a5 {[%clk 0:01:09]} 16. Rd3 {[%clk 0:01:51]}  Rd8 {[%clk 0:01:07]} 17. Rc1 {[%clk 0:01:39]}  Bf6 {[%clk 0:01:02]} 18. Rcd1 {[%clk 0:01:34]}  Rxd3 {[%clk 0:00:57]} 19. Rxd3 {[%clk 0:01:33]}  Nh4 {[%clk 0:00:55]} 20. f4 {[%clk 0:01:31]}  Ng6 {[%clk 0:00:38]} 21. f5 {[%clk 0:01:27]}  Nh8 {[%clk 0:00:30]} 22. f4 {[%clk 0:01:23]}  Nf7 {[%clk 0:00:31]} 23. c3 {[%clk 0:01:18]}  Ke7 {[%clk 0:00:30]} 24. b4 {[%clk 0:01:07]}  axb4 {[%clk 0:00:28]} 25. cxb4 {[%clk 0:01:06]}  g6 {[%clk 0:00:20]} 26. fxg6 {[%clk 0:01:03]}  hxg6 {[%clk 0:00:21]} 27. a5 {[%clk 0:01:00]}  exf4 {[%clk 0:00:17]} 28. Bxf4 {[%clk 0:00:59]}  Ng5 {[%clk 0:00:11]} 29. Ke3 {[%clk 0:00:49]}  Ne6 {[%clk 0:00:10]} 30. Bg3 {[%clk 0:00:46]}  b5 {[%clk 0:00:08]} 31. Nd2 {[%clk 0:00:43]}  Bg5+ {[%clk 0:00:07]} 32. Ke2 {[%clk 0:00:41]}  Nf4+ {[%clk 0:00:07]} 33. Bxf4 {[%clk 0:00:40]}  Bxf4 {[%clk 0:00:07]} 34. a6 {[%clk 0:00:38]}  Ra8 {[%clk 0:00:06]} 35. Ra3 {[%clk 0:00:37]}  Bd6 {[%clk 0:00:05]} 36. Nf3 {[%clk 0:00:25]}  Bxb4 {[%clk 0:00:04]} 37. Ra2 {[%clk 0:00:21]}  c5 {[%clk 0:00:04]} 38. Ne5 {[%clk 0:00:20]}  g5 {[%clk 0:00:03]} 39. Nc6+ {[%clk 0:00:19]}  Ke6 {[%clk 0:00:03]} 40. Nxb4 {[%clk 0:00:18]}  cxb4 {[%clk 0:00:04]} 41. Kd3 {[%clk 0:00:17]}  c5 {[%clk 0:00:05]} 42. Rb2 {[%clk 0:00:12]}  Rxa6 {[%clk 0:00:04]} 43. Rg2 {[%clk 0:00:11]}  Ra3+ {[%clk 0:00:04]} 44. Ke2 {[%clk 0:00:11]}  Ra2+ {[%clk 0:00:04]} 45. Kf3 {[%clk 0:00:12]}  Rxg2 {[%clk 0:00:05]} 46. Kxg2 {[%clk 0:00:11]}  b3 {[%clk 0:00:05]} 47. Kf3 {[%clk 0:00:12]}  b2 {[%clk 0:00:06]} 48. Kg4 {[%clk 0:00:11]}  b1=Q {[%clk 0:00:07]} 49. Kxg5 {[%clk 0:00:11]}  Qxe4 {[%clk 0:00:07]} 50. h4 {[%clk 0:00:11]}  Qf5+ {[%clk 0:00:07]} 51. Kh6 {[%clk 0:00:05]}  Kf7 {[%clk 0:00:08]} 52. h5 {[%clk 0:00:04]}  Qf6+ {[%clk 0:00:09]} 53. Kh7 {[%clk 0:00:04]}  Qg7# {[%clk 0:00:10]} 0-1


[Site "https://www.chess.com"]

[Event "Titled Tuesday Blitz July 25 Early 2023"]
[White "Larina, Maria"]
[Black "Vifleemskaia, Svetlana"]
[WhiteFideId "24113182"]
[BlackFideId "4129490"]
[WhiteElo "2107"]
[BlackElo "2326"]
[Result "1-0"]
[Round "7"]
[TimeControl "180+2"]
[Date "2023.07.25"]
[WhiteClock "0:00:04"]
[BlackClock "0:00:00"]
[Board "195"]

1. e4 {[%clk 0:03:00]}  e5 {[%clk 0:02:59]} 2. Nf3 {[%clk 0:03:00]}  Nc6 {[%clk 0:02:58]} 3. Nc3 {[%clk 0:03:00]}  Nf6 {[%clk 0:02:58]} 4. Bb5 {[%clk 0:03:01]}  Bb4 {[%clk 0:02:57]} 5. O-O {[%clk 0:03:01]}  O-O {[%clk 0:02:55]} 6. d3 {[%clk 0:03:01]}  Bxc3 {[%clk 0:02:54]} 7. bxc3 {[%clk 0:03:01]}  d6 {[%clk 0:02:54]} 8. Nd2 {[%clk 0:03:02]}  Ne7 {[%clk 0:02:39]} 9. d4 {[%clk 0:03:01]}  c6 {[%clk 0:02:38]} 10. Bd3 {[%clk 0:03:00]}  Ng6 {[%clk 0:02:38]} 11. Re1 {[%clk 0:02:43]}  Re8 {[%clk 0:02:35]} 12. a4 {[%clk 0:02:37]}  a5 {[%clk 0:02:31]} 13. h3 {[%clk 0:02:37]}  Bd7 {[%clk 0:02:25]} 14. Qf3 {[%clk 0:02:36]}  c5 {[%clk 0:02:15]} 15. d5 {[%clk 0:02:28]}  Rb8 {[%clk 0:02:06]} 16. Nc4 {[%clk 0:02:27]}  Qe7 {[%clk 0:02:04]} 17. Nxa5 {[%clk 0:02:26]}  Ra8 {[%clk 0:01:59]} 18. Nc4 {[%clk 0:02:21]}  Rxa4 {[%clk 0:01:57]} 19. Bg5 {[%clk 0:02:16]}  b5 {[%clk 0:01:35]} 20. Nb6 {[%clk 0:01:59]}  Rxa1 {[%clk 0:01:29]} 21. Rxa1 {[%clk 0:02:00]}  c4 {[%clk 0:01:24]} 22. Ra7 {[%clk 0:01:18]}  Rd8 {[%clk 0:00:59]} 23. Bf1 {[%clk 0:01:13]}  Nf8 {[%clk 0:00:50]} 24. Qg3 {[%clk 0:00:58]}  Kh8 {[%clk 0:00:38]} 25. Qh4 {[%clk 0:00:52]}  Rb8 {[%clk 0:00:22]} 26. Bxf6 {[%clk 0:00:50]}  gxf6 {[%clk 0:00:20]} 27. Nxd7 {[%clk 0:00:46]}  Nxd7 {[%clk 0:00:19]} 28. Qg4 {[%clk 0:00:43]}  Rd8 {[%clk 0:00:18]} 29. Qf5 {[%clk 0:00:42]}  Kg7 {[%clk 0:00:17]} 30. h4 {[%clk 0:00:42]}  h6 {[%clk 0:00:17]} 31. Be2 {[%clk 0:00:41]}  Qe8 {[%clk 0:00:16]} 32. Bg4 {[%clk 0:00:41]}  Nc5 {[%clk 0:00:15]} 33. Bf3 {[%clk 0:00:34]}  Rd7 {[%clk 0:00:15]} 34. Ra1 {[%clk 0:00:27]}  Rd8 {[%clk 0:00:13]} 35. g4 {[%clk 0:00:20]}  Qd7 {[%clk 0:00:11]} 36. Qh5 {[%clk 0:00:19]}  Rg8 {[%clk 0:00:09]} 37. Kh2 {[%clk 0:00:19]}  Kh7 {[%clk 0:00:08]} 38. Rg1 {[%clk 0:00:19]}  Rg6 {[%clk 0:00:06]} 39. g5 {[%clk 0:00:18]}  fxg5 {[%clk 0:00:06]} 40. hxg5 {[%clk 0:00:17]}  Qe7 {[%clk 0:00:03]} 41. Rg3 {[%clk 0:00:06]}  Rxg5 {[%clk 0:00:02]} 42. Rxg5 {[%clk 0:00:06]}  Qxg5 {[%clk 0:00:03]} 43. Qxf7+ {[%clk 0:00:06]}  Qg7 {[%clk 0:00:03]} 44. Qf5+ {[%clk 0:00:06]}  Qg6 {[%clk 0:00:04]} 45. Qh3 {[%clk 0:00:03]}  Qg7 {[%clk 0:00:03]} 46. Bg4 {[%clk 0:00:01]}  Qf6 {[%clk 0:00:02]} 47. Bf5+ {[%clk 0:00:02]}  Kg7 {[%clk 0:00:03]} 48. Qg4+ {[%clk 0:00:02]}  Kf7 {[%clk 0:00:03]} 49. Qh5+ {[%clk 0:00:02]}  Ke7 {[%clk 0:00:04]} 50. Qg4 {[%clk 0:00:02]}  Kf7 {[%clk 0:00:04]} 51. f3 {[%clk 0:00:03]}  Na4 {[%clk 0:00:03]} 52. Qh3 {[%clk 0:00:03]}  Nxc3 {[%clk 0:00:02]} 53. Qh5+ {[%clk 0:00:04]}  Ke7 {[%clk 0:00:02]} 54. Qg4 {[%clk 0:00:04]}  Nd1 {[%clk 0:00:02]} 55. Qg8 {[%clk 0:00:04]}  Ne3 {[%clk 0:00:00]} 56. Qc8 {[%clk 0:00:04]} 1-0


[Site "https://www.chess.com"]

[Event "Titled Tuesday Blitz July 25 Early 2023"]
[White "Fernandez Hernandez, Gerardo"]
[Black "Wisniowski, Natalie"]
[WhiteFideId "2207400"]
[BlackFideId "30929261"]
[WhiteElo "2229"]
[BlackElo "2097"]
[Result "1-0"]
[Round "7"]
[TimeControl "180+2"]
[Date "2023.07.25"]
[WhiteClock "0:00:35"]
[BlackClock "0:00:46"]
[Board "197"]

1. e4 {[%clk 0:03:00]}  b6 {[%clk 0:03:00]} 2. d4 {[%clk 0:03:00]}  Bb7 {[%clk 0:03:00]} 3. Bd3 {[%clk 0:03:00]}  e6 {[%clk 0:02:59]} 4. Qe2 {[%clk 0:03:00]}  g6 {[%clk 0:02:55]} 5. Nf3 {[%clk 0:02:59]}  Bg7 {[%clk 0:02:56]} 6. O-O {[%clk 0:02:59]}  Ne7 {[%clk 0:02:54]} 7. Bg5 {[%clk 0:02:44]}  O-O {[%clk 0:02:52]} 8. Nbd2 {[%clk 0:02:36]}  d6 {[%clk 0:02:48]} 9. Rad1 {[%clk 0:02:28]}  Nd7 {[%clk 0:02:48]} 10. c3 {[%clk 0:02:22]}  c5 {[%clk 0:02:48]} 11. dxc5 {[%clk 0:02:18]}  Nxc5 {[%clk 0:02:48]} 12. Bb1 {[%clk 0:02:15]}  Qc7 {[%clk 0:02:45]} 13. Qe3 {[%clk 0:02:04]}  Nc6 {[%clk 0:02:32]} 14. Rfe1 {[%clk 0:01:57]}  Ne5 {[%clk 0:02:31]} 15. Nxe5 {[%clk 0:01:54]}  Bxe5 {[%clk 0:02:31]} 16. Nc4 {[%clk 0:01:47]}  d5 {[%clk 0:02:05]} 17. Nxe5 {[%clk 0:01:23]}  Qxe5 {[%clk 0:02:03]} 18. f4 {[%clk 0:01:07]}  Qc7 {[%clk 0:02:00]} 19. e5 {[%clk 0:01:04]}  Qc6 {[%clk 0:01:55]} 20. Rd4 {[%clk 0:00:53]}  Na6 {[%clk 0:01:30]} 21. Bf6 {[%clk 0:00:49]}  Nc7 {[%clk 0:01:29]} 22. Qh3 {[%clk 0:00:47]}  Rfc8 {[%clk 0:01:19]} 23. Re3 {[%clk 0:00:41]}  Ne8 {[%clk 0:00:46]} 24. Qxh7+ {[%clk 0:00:35]} 1-0


[Site "https://www.chess.com"]

[Event "Titled Tuesday Blitz July 25 Early 2023"]
[White "Joshi, Pankaj"]
[Black "Semenova, Alina"]
[WhiteFideId "5006210"]
[BlackFideId "24113875"]
[WhiteElo "2225"]
[BlackElo "2081"]
[Result "1-0"]
[Round "7"]
[TimeControl "180+2"]
[Date "2023.07.25"]
[WhiteClock "0:01:29"]
[BlackClock "0:00:00"]
[Board "198"]

1. e4 {[%clk 0:03:00]}  e6 {[%clk 0:02:57]} 2. d4 {[%clk 0:03:00]}  d5 {[%clk 0:02:57]} 3. e5 {[%clk 0:02:58]}  c5 {[%clk 0:02:57]} 4. c3 {[%clk 0:02:58]}  Nc6 {[%clk 0:02:57]} 5. Nf3 {[%clk 0:02:59]}  Qb6 {[%clk 0:02:57]} 6. a3 {[%clk 0:02:59]}  Nh6 {[%clk 0:02:56]} 7. Bd3 {[%clk 0:02:54]}  cxd4 {[%clk 0:02:54]} 8. cxd4 {[%clk 0:02:53]}  Nf5 {[%clk 0:02:54]} 9. Bxf5 {[%clk 0:02:40]}  exf5 {[%clk 0:02:55]} 10. O-O {[%clk 0:02:40]}  Be7 {[%clk 0:02:55]} 11. Nc3 {[%clk 0:02:39]}  Be6 {[%clk 0:02:54]} 12. b4 {[%clk 0:02:37]}  O-O {[%clk 0:02:51]} 13. Bg5 {[%clk 0:02:36]}  Bxg5 {[%clk 0:02:47]} 14. Nxg5 {[%clk 0:02:36]}  h6 {[%clk 0:02:48]} 15. Nf3 {[%clk 0:02:35]}  Rac8 {[%clk 0:02:39]} 16. Na4 {[%clk 0:02:33]}  Qc7 {[%clk 0:02:35]} 17. Rc1 {[%clk 0:02:33]}  Qe7 {[%clk 0:02:31]} 18. Qd3 {[%clk 0:02:22]}  g5 {[%clk 0:02:26]} 19. Rc3 {[%clk 0:02:12]}  a6 {[%clk 0:01:49]} 20. Rfc1 {[%clk 0:02:12]}  g4 {[%clk 0:01:31]} 21. Nd2 {[%clk 0:02:10]}  f4 {[%clk 0:01:31]} 22. Nc5 {[%clk 0:01:54]}  Kg7 {[%clk 0:01:17]} 23. Nf1 {[%clk 0:01:45]}  h5 {[%clk 0:00:46]} 24. Qd2 {[%clk 0:01:45]}  Qg5 {[%clk 0:00:30]} 25. Ng3 {[%clk 0:01:35]}  h4 {[%clk 0:00:28]} 26. Qxf4 {[%clk 0:01:31]}  Qxf4 {[%clk 0:00:23]} 27. Nh5+ {[%clk 0:01:32]}  Kg6 {[%clk 0:00:24]} 28. Nxf4+ {[%clk 0:01:32]}  Kf5 {[%clk 0:00:25]} 29. Nfxe6 {[%clk 0:01:31]}  fxe6 {[%clk 0:00:26]} 30. Nxb7 {[%clk 0:01:29]}  Ne7 {[%clk 0:00:00]} 31. Nd6+ {[%clk 0:01:29]} 1-0


[Site "https://www.chess.com"]

[Event "Titled Tuesday Blitz July 25 Early 2023"]
[White "Sailer, Mike"]
[Black "Lohani, Sujana"]
[WhiteFideId "2012901"]
[BlackFideId "12311987"]
[WhiteElo "2162"]
[BlackElo "1938"]
[Result "1-0"]
[Round "7"]
[TimeControl "180+2"]
[Date "2023.07.25"]
[WhiteClock "0:00:21"]
[BlackClock "0:00:00"]
[Board "202"]

1. d4 {[%clk 0:03:00]}  Nf6 {[%clk 0:02:06]} 2. Nc3 {[%clk 0:02:58]}  g6 {[%clk 0:02:00]} 3. e4 {[%clk 0:02:58]}  d6 {[%clk 0:01:59]} 4. Bg5 {[%clk 0:02:56]}  Bg7 {[%clk 0:01:58]} 5. e5 {[%clk 0:02:57]}  dxe5 {[%clk 0:01:58]} 6. dxe5 {[%clk 0:02:56]}  Qxd1+ {[%clk 0:01:56]} 7. Rxd1 {[%clk 0:02:56]}  Ng4 {[%clk 0:01:56]} 8. h3 {[%clk 0:02:53]}  Nxe5 {[%clk 0:01:55]} 9. Nd5 {[%clk 0:02:51]}  O-O {[%clk 0:01:09]} 10. Nxc7 {[%clk 0:02:42]}  Nbc6 {[%clk 0:01:04]} 11. Nxa8 {[%clk 0:02:41]}  Bf5 {[%clk 0:00:59]} 12. Nc7 {[%clk 0:02:30]}  Bxc2 {[%clk 0:00:54]} 13. Rc1 {[%clk 0:02:24]}  Be4 {[%clk 0:00:49]} 14. f3 {[%clk 0:02:11]}  Bf5 {[%clk 0:00:39]} 15. g4 {[%clk 0:02:06]}  Bd3 {[%clk 0:00:22]} 16. f4 {[%clk 0:01:50]}  Bxf1 {[%clk 0:00:18]} 17. Kxf1 {[%clk 0:01:37]}  Nd3 {[%clk 0:00:12]} 18. Rd1 {[%clk 0:01:19]}  Nxb2 {[%clk 0:00:11]} 19. Rd7 {[%clk 0:01:16]}  e6 {[%clk 0:00:05]} 20. Nf3 {[%clk 0:01:10]}  Nc4 {[%clk 0:00:02]} 21. Rh2 {[%clk 0:00:54]}  Nb6 {[%clk 0:00:02]} 22. Rd1 {[%clk 0:00:49]}  Rc8 {[%clk 0:00:03]} 23. Nb5 {[%clk 0:00:48]}  a6 {[%clk 0:00:02]} 24. Nd6 {[%clk 0:00:46]}  Rc7 {[%clk 0:00:02]} 25. Rc2 {[%clk 0:00:40]}  Rd7 {[%clk 0:00:02]} 26. Ke2 {[%clk 0:00:29]}  Nd5 {[%clk 0:00:00]} 27. Nxb7 {[%clk 0:00:21]} 1-0


[Site "https://www.chess.com"]

[Event "Titled Tuesday Blitz July 25 Early 2023"]
[White "Novikova, Margarita"]
[Black "KSho99"]
[WhiteFideId "14109689"]
[WhiteElo "2167"]
[BlackElo "2200"]
[Result "0-1"]
[Round "7"]
[TimeControl "180+2"]
[Date "2023.07.25"]
[WhiteClock "0:00:16"]
[BlackClock "0:00:06"]
[Board "206"]

1. e4 {[%clk 0:03:00]}  e6 {[%clk 0:02:59]} 2. d4 {[%clk 0:03:00]}  d5 {[%clk 0:02:59]} 3. Nd2 {[%clk 0:02:59]}  Be7 {[%clk 0:02:57]} 4. Ngf3 {[%clk 0:02:57]}  Nf6 {[%clk 0:02:56]} 5. e5 {[%clk 0:02:55]}  Nfd7 {[%clk 0:02:56]} 6. c3 {[%clk 0:02:54]}  c5 {[%clk 0:02:54]} 7. Bb5 {[%clk 0:02:50]}  O-O {[%clk 0:02:48]} 8. O-O {[%clk 0:02:48]}  Nc6 {[%clk 0:02:23]} 9. a3 {[%clk 0:02:29]}  Qb6 {[%clk 0:02:06]} 10. Bxc6 {[%clk 0:02:24]}  bxc6 {[%clk 0:02:03]} 11. Re1 {[%clk 0:02:18]}  cxd4 {[%clk 0:02:01]} 12. cxd4 {[%clk 0:02:15]}  c5 {[%clk 0:02:01]} 13. Nf1 {[%clk 0:02:12]}  cxd4 {[%clk 0:01:55]} 14. Nxd4 {[%clk 0:02:13]}  a5 {[%clk 0:01:41]} 15. Kh1 {[%clk 0:02:04]}  Bc5 {[%clk 0:01:27]} 16. Be3 {[%clk 0:01:37]}  Nxe5 {[%clk 0:01:26]} 17. b4 {[%clk 0:01:18]}  axb4 {[%clk 0:01:20]} 18. axb4 {[%clk 0:01:19]}  Rxa1 {[%clk 0:01:20]} 19. Qxa1 {[%clk 0:01:18]}  Qxb4 {[%clk 0:01:00]} 20. Nc2 {[%clk 0:01:02]}  Qc4 {[%clk 0:00:50]} 21. Qxe5 {[%clk 0:00:57]}  Qxc2 {[%clk 0:00:47]} 22. Rc1 {[%clk 0:00:57]}  Qe2 {[%clk 0:00:41]} 23. Bxc5 {[%clk 0:00:55]}  Qxe5 {[%clk 0:00:38]} 24. Bxf8 {[%clk 0:00:55]}  Kxf8 {[%clk 0:00:28]} 25. Rxc8+ {[%clk 0:00:54]}  Ke7 {[%clk 0:00:29]} 26. Kg1 {[%clk 0:00:44]}  Qe1 {[%clk 0:00:26]} 27. g3 {[%clk 0:00:43]}  d4 {[%clk 0:00:25]} 28. Ra8 {[%clk 0:00:43]}  e5 {[%clk 0:00:19]} 29. Ra2 {[%clk 0:00:41]}  e4 {[%clk 0:00:16]} 30. Kg2 {[%clk 0:00:42]}  f5 {[%clk 0:00:14]} 31. h4 {[%clk 0:00:40]}  Qb4 {[%clk 0:00:09]} 32. Rd2 {[%clk 0:00:40]}  Ke6 {[%clk 0:00:06]} 33. Rd1 {[%clk 0:00:35]}  Ke5 {[%clk 0:00:06]} 34. Nd2 {[%clk 0:00:33]}  g6 {[%clk 0:00:06]} 35. Kf1 {[%clk 0:00:27]}  Qc3 {[%clk 0:00:06]} 36. Kg2 {[%clk 0:00:16]}  Qc2 {[%clk 0:00:06]} 0-1


[Site "https://www.chess.com"]

[Event "Titled Tuesday Blitz July 25 Early 2023"]
[White "Guevara Sanchez, Erick Marvin"]
[Black "Sariego Figueredo, Wilfredo"]
[WhiteFideId "6700136"]
[BlackFideId "3500080"]
[WhiteElo "2088"]
[BlackElo "2198"]
[Result "0-1"]
[Round "7"]
[TimeControl "180+2"]
[Date "2023.07.25"]
[WhiteClock "0:00:02"]
[BlackClock "0:00:36"]
[Board "207"]

1. e4 {[%clk 0:03:00]}  c5 {[%clk 0:03:00]} 2. d4 {[%clk 0:03:00]}  cxd4 {[%clk 0:03:00]} 3. c3 {[%clk 0:03:00]}  Nf6 {[%clk 0:03:01]} 4. e5 {[%clk 0:03:00]}  Nd5 {[%clk 0:03:01]} 5. cxd4 {[%clk 0:02:58]}  d6 {[%clk 0:03:02]} 6. f4 {[%clk 0:02:58]}  dxe5 {[%clk 0:03:00]} 7. fxe5 {[%clk 0:02:57]}  e6 {[%clk 0:03:01]} 8. Nf3 {[%clk 0:02:57]}  Bb4+ {[%clk 0:03:01]} 9. Bd2 {[%clk 0:02:57]}  O-O {[%clk 0:03:00]} 10. Bxb4 {[%clk 0:02:55]}  Nxb4 {[%clk 0:03:01]} 11. Nc3 {[%clk 0:02:55]}  N8c6 {[%clk 0:03:00]} 12. Be2 {[%clk 0:02:54]}  Nxd4 {[%clk 0:02:56]} 13. O-O {[%clk 0:02:43]}  Nxe2+ {[%clk 0:02:52]} 14. Qxe2 {[%clk 0:02:43]}  Bd7 {[%clk 0:02:46]} 15. Rad1 {[%clk 0:02:38]}  Qb6+ {[%clk 0:02:46]} 16. Kh1 {[%clk 0:02:38]}  Bc6 {[%clk 0:02:46]} 17. Ng5 {[%clk 0:02:32]}  h6 {[%clk 0:02:42]} 18. Nge4 {[%clk 0:02:32]}  Nd5 {[%clk 0:02:38]} 19. Nxd5 {[%clk 0:02:31]}  Bxd5 {[%clk 0:02:39]} 20. b3 {[%clk 0:02:25]}  Bxe4 {[%clk 0:02:32]} 21. Qxe4 {[%clk 0:02:25]}  Rfd8 {[%clk 0:02:33]} 22. Qf3 {[%clk 0:02:17]}  Qc7 {[%clk 0:02:24]} 23. Rc1 {[%clk 0:02:15]}  Qe7 {[%clk 0:02:21]} 24. h3 {[%clk 0:02:14]}  Rac8 {[%clk 0:02:21]} 25. Rxc8 {[%clk 0:02:12]}  Rxc8 {[%clk 0:02:22]} 26. Rd1 {[%clk 0:02:11]}  Rd8 {[%clk 0:02:22]} 27. Rxd8+ {[%clk 0:02:09]}  Qxd8 {[%clk 0:02:23]} 28. Qxb7 {[%clk 0:02:09]}  Qa5 {[%clk 0:02:21]} 29. Qc8+ {[%clk 0:02:05]}  Kh7 {[%clk 0:02:21]} 30. Qc2+ {[%clk 0:02:06]}  g6 {[%clk 0:02:21]} 31. Qe2 {[%clk 0:02:06]}  Qc3 {[%clk 0:02:16]} 32. Kh2 {[%clk 0:02:04]}  a5 {[%clk 0:02:14]} 33. Kh1 {[%clk 0:02:02]}  Qd4 {[%clk 0:02:11]} 34. Kh2 {[%clk 0:01:59]}  Qf4+ {[%clk 0:02:11]} 35. Kh1 {[%clk 0:01:59]}  Qd4 {[%clk 0:02:11]} 36. Kh2 {[%clk 0:01:54]}  h5 {[%clk 0:02:11]} 37. Kh1 {[%clk 0:01:47]}  Kh6 {[%clk 0:02:09]} 38. Kh2 {[%clk 0:01:46]}  g5 {[%clk 0:02:08]} 39. Kh1 {[%clk 0:01:41]}  Kg6 {[%clk 0:02:08]} 40. Qc2+ {[%clk 0:01:39]}  Kh6 {[%clk 0:02:08]} 41. Qe2 {[%clk 0:01:39]}  h4 {[%clk 0:02:01]} 42. Kh2 {[%clk 0:01:38]}  Qf4+ {[%clk 0:02:00]} 43. Kh1 {[%clk 0:01:38]}  Kg6 {[%clk 0:02:00]} 44. Qc2+ {[%clk 0:01:37]}  Qf5 {[%clk 0:02:00]} 45. Qe2 {[%clk 0:01:36]}  Qb1+ {[%clk 0:01:58]} 46. Kh2 {[%clk 0:01:34]}  Qf5 {[%clk 0:01:51]} 47. Kh1 {[%clk 0:01:34]}  f6 {[%clk 0:01:47]} 48. exf6 {[%clk 0:01:29]}  Kxf6 {[%clk 0:01:48]} 49. a3 {[%clk 0:01:22]}  Qb1+ {[%clk 0:01:46]} 50. Kh2 {[%clk 0:01:21]}  Qxb3 {[%clk 0:01:46]} 51. Qf2+ {[%clk 0:01:17]}  Kg6 {[%clk 0:01:45]} 52. Qf8 {[%clk 0:01:10]}  a4 {[%clk 0:01:35]} 53. Qg8+ {[%clk 0:01:09]}  Kf5 {[%clk 0:01:35]} 54. Qh7+ {[%clk 0:01:08]}  Ke5 {[%clk 0:01:35]} 55. Qg7+ {[%clk 0:01:07]}  Kf4 {[%clk 0:01:32]} 56. Qf6+ {[%clk 0:01:07]}  Ke4 {[%clk 0:01:26]} 57. Qxg5 {[%clk 0:01:03]}  Kd3 {[%clk 0:01:26]} 58. Qxh4 {[%clk 0:01:02]}  e5 {[%clk 0:01:23]} 59. Qe1 {[%clk 0:00:59]}  e4 {[%clk 0:01:22]} 60. h4 {[%clk 0:00:56]}  e3 {[%clk 0:01:22]} 61. h5 {[%clk 0:00:51]}  e2 {[%clk 0:01:22]} 62. h6 {[%clk 0:00:50]}  Qc2 {[%clk 0:01:10]} 63. h7 {[%clk 0:00:47]}  Qc7+ {[%clk 0:01:10]} 64. Kg1 {[%clk 0:00:42]}  Qxh7 {[%clk 0:01:10]} 65. Qb1+ {[%clk 0:00:43]}  Kd2 {[%clk 0:01:08]} 66. Qxh7 {[%clk 0:00:43]}  e1=Q+ {[%clk 0:01:08]} 67. Kh2 {[%clk 0:00:43]}  Qe5+ {[%clk 0:01:07]} 68. Kg1 {[%clk 0:00:42]}  Qc5+ {[%clk 0:01:06]} 69. Kh1 {[%clk 0:00:41]}  Qxa3 {[%clk 0:01:06]} 70. Qd7+ {[%clk 0:00:40]}  Kc2 {[%clk 0:01:03]} 71. Qf5+ {[%clk 0:00:38]}  Qd3 {[%clk 0:00:56]} 72. Qf2+ {[%clk 0:00:37]}  Kc1 {[%clk 0:00:49]} 73. Qc5+ {[%clk 0:00:35]}  Qc2 {[%clk 0:00:50]} 74. Qa3+ {[%clk 0:00:34]}  Kb1 {[%clk 0:00:47]} 75. Qb4+ {[%clk 0:00:24]}  Ka2 {[%clk 0:00:47]} 76. Qd4 {[%clk 0:00:22]}  a3 {[%clk 0:00:46]} 77. Qd5+ {[%clk 0:00:21]}  Ka1 {[%clk 0:00:33]} 78. Qd4+ {[%clk 0:00:20]}  Qb2 {[%clk 0:00:33]} 79. Qd1+ {[%clk 0:00:20]}  Qb1 {[%clk 0:00:34]} 80. Qxb1+ {[%clk 0:00:05]}  Kxb1 {[%clk 0:00:35]} 81. g4 {[%clk 0:00:05]}  a2 {[%clk 0:00:36]} 82. g5 {[%clk 0:00:06]}  a1=Q {[%clk 0:00:36]} 83. g6 {[%clk 0:00:07]}  Qa8+ {[%clk 0:00:37]} 84. Kh2 {[%clk 0:00:07]}  Qe4 {[%clk 0:00:36]} 85. g7 {[%clk 0:00:02]}  Qg6 {[%clk 0:00:36]} 0-1


[Site "https://www.chess.com"]

[Event "Titled Tuesday Blitz July 25 Early 2023"]
[White "Clawitter, Craig"]
[Black "Tica, Sven"]
[WhiteFideId "2023105"]
[BlackFideId "14526948"]
[WhiteElo "2290"]
[BlackElo "2745"]
[Result "0-1"]
[Round "7"]
[TimeControl "180+2"]
[Date "2023.07.25"]
[WhiteClock "0:00:00"]
[BlackClock "0:01:23"]
[Board "208"]

1. e4 {[%clk 0:02:57]}  g6 {[%clk 0:02:57]} 2. d4 {[%clk 0:02:57]}  Bg7 {[%clk 0:02:58]} 3. Nc3 {[%clk 0:02:57]}  a6 {[%clk 0:02:58]} 4. Be3 {[%clk 0:02:57]}  b5 {[%clk 0:02:58]} 5. Nf3 {[%clk 0:02:49]}  Bb7 {[%clk 0:02:58]} 6. Bd3 {[%clk 0:02:50]}  d6 {[%clk 0:02:58]} 7. a4 {[%clk 0:02:47]}  b4 {[%clk 0:02:58]} 8. Ne2 {[%clk 0:02:48]}  Nd7 {[%clk 0:02:58]} 9. Qd2 {[%clk 0:02:47]}  c5 {[%clk 0:02:58]} 10. c3 {[%clk 0:02:45]}  bxc3 {[%clk 0:02:57]} 11. bxc3 {[%clk 0:02:46]}  Ngf6 {[%clk 0:02:57]} 12. Ng3 {[%clk 0:02:31]}  h5 {[%clk 0:02:57]} 13. h4 {[%clk 0:02:30]}  Ng4 {[%clk 0:02:56]} 14. O-O {[%clk 0:02:21]}  O-O {[%clk 0:02:48]} 15. Bc4 {[%clk 0:02:20]}  Rc8 {[%clk 0:02:47]} 16. Ba2 {[%clk 0:02:17]}  Ndf6 {[%clk 0:02:44]} 17. Ng5 {[%clk 0:02:04]}  Qa5 {[%clk 0:02:42]} 18. Rfc1 {[%clk 0:01:31]}  Nxe3 {[%clk 0:02:32]} 19. Qxe3 {[%clk 0:01:25]}  Ng4 {[%clk 0:02:32]} 20. Qf4 {[%clk 0:01:17]}  e6 {[%clk 0:02:24]} 21. Nxf7 {[%clk 0:00:59]}  Rxf7 {[%clk 0:02:21]} 22. Bxe6 {[%clk 0:00:59]}  Rf8 {[%clk 0:02:21]} 23. Qxd6 {[%clk 0:00:52]}  cxd4 {[%clk 0:02:16]} 24. cxd4 {[%clk 0:00:49]}  Qd2 {[%clk 0:02:16]} 25. Rc7 {[%clk 0:00:20]}  Qxf2+ {[%clk 0:02:05]} 26. Kh1 {[%clk 0:00:21]}  Be5 {[%clk 0:01:45]} 27. Rxf7 {[%clk 0:00:12]}  Rxf7 {[%clk 0:01:42]} 28. Bxf7+ {[%clk 0:00:03]}  Kg7 {[%clk 0:01:43]} 29. dxe5 {[%clk 0:00:02]}  Qxf7 {[%clk 0:01:32]} 30. e6 {[%clk 0:00:01]}  Qf6 {[%clk 0:01:30]} 31. Rf1 {[%clk 0:00:01]}  Nf2+ {[%clk 0:01:28]} 32. Kg1 {[%clk 0:00:00]}  Nxe4 {[%clk 0:01:23]} 0-1


[Site "https://www.chess.com"]